Cogmind - Beta 17 @@@ ROGUE MODE // 2026.07.16 @ 20:15:27 Player: Kaeinara Result: Destroyed by D-53 Grenadier with Mini Grenade Launcher Performance ------------- Evolutions (0) 0 Regions Visited (2) 400 Robots Destroyed (9) 45 Value Destroyed (199) 199 Prototype IDs (0) 0 Alien Tech Used (0) 0 Bonus (0) 0 TOTAL SCORE: 644 Bonus ------- None Cogmind --------- Core Integrity 0/250 Matter 231/300 Energy 243/250 System Corruption 0% Temperature Cool (0) Movement Walking (190) Ox1 Location -10/Mines Parts ------- > --- POWER (1) -------- Ion Engine > --- PROPULSION (2) --- Aluminum Leg > --- UTILITY (2) ------ Heat Sink Medium Storage Unit > --- WEAPON (2) ------- Light Assault Rifle Hammer > --- INVENTORY (10) --- Ion Engine Aluminum Leg Sensor Array Experimental Sensor Array Signal Interpreter Small Laser Assault Rifle Mining Laser Peak State ------------ > --- POWER ------------ Ion Engine > --- PROPULSION ------- Aluminum Leg Aluminum Leg > --- UTILITY ---------- Heat Sink Medium Storage Unit > --- WEAPON ----------- Light Assault Rifle Light Assault Rifle > --- INVENTORY -------- Ion Engine Ion Engine Light Treads Light Treads Aluminum Leg Sensor Array Signal Interpreter Small Laser Assault Rifle Hammer [Rating: 8] Favorites ----------- Power Ion Engine Engine Ion Engine Propulsion Aluminum Leg Leg Aluminum Leg Utility Heat Sink Device Heat Sink Storage Small Storage Unit Weapon Light Assault Rifle Ballistic Gun Light Assault Rifle Launcher Rocket Launcher Impact Weapon Hammer Build | -11 -10 -10 ------- Run | Yrd Mat Min Slots Evolved . | . . . Power . | . . . Propulsion . | . . . Utility . | . . . Weapon . | . . . Parts Attached 12 | 7 3 2 Power 2 | 1 . 1 Engine 2 | 1 . 1 Core . | . . . Reactor . | . . . Propulsion 2 | 2 . . Treads . | . . . Leg 2 | 2 . . Wheel . | . . . Hover . | . . . Flight . | . . . Utility 3 | 1 2 . Device 1 | . 1 . Storage 2 | 1 1 . Processor . | . . . Hackware . | . . . Protection . | . . . Artifact . | . . . Weapon 5 | 3 1 1 Energy Gun . | . . . Energy Cannon . | . . . Ballistic Gun 3 | 3 . . Ballistic Cannon . | . . . Launcher 1 | . . 1 Special Weapon . | . . . Impact Weapon 1 | . 1 . Slashing Weapon . | . . . Piercing Weapon . | . . . Special Melee Weapon . | . . . Unidentified Prototypes . | . . . Parts Lost 3 | . . 3 Power . | . . . Propulsion 1 | . . 1 Utility . | . . . Weapon 2 | . . 2 Highest Loss Streak 3 | . . 3 To Critical Strikes . | . . . Average Backups 7 | 3 7 9 Power 1 | . 1 1 Propulsion 2 | 1 3 1 Utility . | . . 2 Weapon 2 | . 2 4 Tool/Special . | . . . Unused Backups 10 | . 3 7 Power 1 | . . 1 Propulsion 5 | . 3 2 Utility 3 | . . 3 Weapon 1 | . . 1 Tool/Special . | . . . Average Slot Usage (%) 96 | . 96 97 Engine 14 | . 14 14 Leg 27 | . 28 26 Device 11 | . 10 14 Storage 14 | . 14 14 Ballistic Gun 27 | . 28 26 Peak Build Rating 8 | 6 8 8 Average Rating 6 | 4 6 7 On Entrance 4 | . 6 8 Avg Prop Armor Cover (%) . | . . . Naked Turns . | . . . Heaviest Build 19 | 13 19 18 Greatest Support 20 | 20 20 20 Greatest Overweight (x) . | . . . Average Overweight (x) . | . . . Largest Inventory Capacity 10 | 8 10 10 Average Capacity 8 | 7 8 10 Most Carried 10 | 6 10 10 Average Carried 7 | 3 8 9 Final Capacity 10 | 8 10 10 Final Carried 10 | 6 10 8 Class Distribution -------------------- 100% | Mutant Dominant Class ---------------- Mutant | -10/Materials Mutant | -10/Mines Resources | -11 -10 -10 ----------- Run | Yrd Mat Min Matter Collected 346 | 216 96 34 Remotely . | . . . Salvage Created 262 | . 171 91 Parts 18 | . 8 10 Haulers Intercepted . | . . . Recyclers Shooed 2 | . 2 . Parts Field Recycled . | . . . Retrieved Matter . | . . . Parts Self-Destructed . | . . . Prevented . | . . . Parts Restored . | . . . Kills | -11 -10 -10 ------- Run | Yrd Mat Min Combat Hostiles Destroyed 6 | . 4 2 Guns 6 | . 4 2 Classes Destroyed 4 | . 1 3 Tunneler 2 | . . 2 Recycler 1 | . . 1 Swarmer 2 | . . 2 Grunt 4 | . 4 . Best Kill Streak 3 | . 2 3 Combat Bots Only 2 | . 2 2 Max Kills in Single Turn 3 | . 1 3 Gunslinging . | . . . Exploded . | . . . Melee . | . . . Uniques/NPCs Destroyed . | . . . Combat | -11 -10 -10 -------- Run | Yrd Mat Min Hostile Shots Fired 48 | . 26 22 Missed 9 | . 3 6 Hits 39 | . 23 16 Projectile 39 | . 23 16 AOE 7 | . . 7 Damage Taken 681 | . 291 390 Core 255 | . 78 177 Absorbed by Shields . | . . . Core Remaining (%) 100 | 100 . . Volleys Fired 40 | . 30 10 Largest 2 | . 2 2 Hottest 53 | . 40 53 Shots Fired 80 | . 60 20 Gun 79 | . 60 19 Cannon . | . . . Launcher 1 | . . 1 Special . | . . . Kinetic 79 | . 60 19 Thermal . | . . . Explosive 1 | . . 1 Electromagnetic . | . . . Robot Hit Streak 15 | . 15 4 Robot Miss Streak 3 | . 3 2 Penetration Max . | . . . Secondary Targets . | . . . Shots Hit Robots 51 | . 37 14 Core Hits 26 | . 13 13 Critical Kills . | . . . Critical Parts Destroyed . | . . . Critical Strikes 1 | . . 1 Smash 1 | . . 1 Melee Attacks 2 | . 1 1 Impact 2 | . 1 1 Slashing . | . . . Piercing . | . . . Sneak Attacks . | . . . Combat Hostiles . | . . . Follow-up Attacks . | . . . Damage Inflicted 546 | . 303 243 Guns 407 | . 303 104 Cannons . | . . . Explosions 115 | . . 115 Melee 24 | . . 24 Ramming . | . . . Kinetic 407 | . 303 104 Thermal . | . . . Explosive 115 | . . 115 Electromagnetic . | . . . Impact 24 | . . 24 Slashing . | . . . Piercing . | . . . Highest Corruption . | . . . Average Corruption . | . . . Corruption Purged . | . . . Corruption Blocked . | . . . Overload Shots . | . . . Overflow Damage . | . . . Projectiles . | . . . Explosions . | . . . Melee . | . . . Knockbacks . | . . . Impact . | . . . Kinetic . | . . . Secondary . | . . . Self-Inflicted Damage 47 | . . 47 Shots 1 | . . 1 Rammed . | . . . Targets Rammed . | . . . Kicked . | . . . Crushed . | . . . Highest Temperature 12 | . 12 . Average Temperature 7 | . 7 . Received Heat Transfer 159 | . 159 . Siege Activations . | . . . Martial Activations . | . . . Shielding Activations . | . . . Robots Disrupted . | . . . Combat Hostiles . | . . . Robots Corrupted . | . . . Combat Hostiles . | . . . Parts Fried . | . . . Impact Corruptions . | . . . Robots Melted . | . . . Combat Hostiles . | . . . Parts Melted . | . . . Heat Transferred . | . . . Parts Sabotaged . | . . . Parts Stolen . | . . . Parts Stripped . | . . . Power Chain Reactions . | . . . Alert | -11 -10 -10 ------- Run | Yrd Mat Min Maximum Alert Level . | . . . Low Security (%) 100 | 100 100 100 Level 1 . | . . . Level 2 . | . . . Level 3 . | . . . Level 4 . | . . . Level 5 . | . . . High Security . | . . . Max Security . | . . . Peak Influence 90 | . 90 40 Initial 9 | . . 9 Average 31 | . 44 14 Influence Increases 221 | . 165 56 Destroy 0b10 Robot/C 120 | . 80 40 Destroy 0b10 Robot/NC 15 | . . 15 Destroy Leader 10 | . 10 . Disable Machine 15 | . 15 . Destroy Structure 1 | . . 1 Lose Combat Pursuer 60 | . 60 . Influence Decreases 215 | . 140 75 Entered New Map 16 | . . 16 Time Decay 179 | . 140 39 Lost Part 20 | . . 20 Squads Dispatched . | . . . Investigation . | . . . Extermination . | . . . Reinforcement . | . . . Assault . | . . . Garrison . | . . . Intercept . | . . . Searches Triggered . | . . . Construction Impeded . | . . . Haulers Reinforced . | . . . Active Scanning Responses . | . . . Cargo Convoy Interrupts . | . . . Stealth | -11 -10 -10 --------- Run | Yrd Mat Min Distress Signals 1 | . 1 . Communications Jammed . | . . . Distress Signals . | . . . Times Spotted 25 | . 11 14 Peak Tracking Total 17 | . 5 17 Tactical Retreats 3 | . 2 1 Traps | -11 -10 -10 ------- Run | Yrd Mat Min Traps Triggered . | . . . Indirectly . | . . . Trap Hack Attempts . | . . . Triggered . | . . . Disarmed . | . . . Reprogrammed . | . . . Reused . | . . . Traps Extracted . | . . . Installed . | . . . Triggered . | . . . Machines | -11 -10 -10 ---------- Run | Yrd Mat Min Machines Disabled 1 | . 1 . Max in Single Turn 1 | . 1 . Machines Repaired . | . . . Machines Dismantled . | . . . Machines Sabotaged . | . . . Overloaded Fab Kills . | . . . Hacking | -11 -10 -10 --------- Run | Yrd Mat Min Machines Accessed . | . . . Terminals . | . . . Fabricators . | . . . Repair Stations . | . . . Recycling Units . | . . . Scanalyzers . | . . . Garrison Access . | . . . Total Hacks . | . . . Successful . | . . . Failed . | . . . Catastrophic . | . . . Database Lockouts . | . . . Manual . | . . . Terminals . | . . . Fabricators . | . . . Repair Stations . | . . . Recycling Units . | . . . Scanalyzers . | . . . Garrison Access . | . . . Terminal Hacks . | . . . Fabricator Hacks . | . . . Repair Station Hacks . | . . . Recycling Unit Hacks . | . . . Scanalyzer . | . . . Garrison Access Hacks . | . . . Unauthorized Hacks . | . . . Terminals . | . . . Fabricators . | . . . Repair Stations . | . . . Recycling Units . | . . . Scanalyzers . | . . . Garrison Access . | . . . Data Cores Recovered . | . . . Used . | . . . Hacking Detections . | . . . Full Trace Events . | . . . Feedback Events . | . . . Feedback Blocked . | . . . Robot Schematics Acquired . | . . . Robots Built . | . . . Authchips . | . . . Time . | . . . Total Robot Build Rating . | . . . Part Schematics Acquired . | . . . Parts Built . | . . . Authchips . | . . . Time . | . . . Total Part Build Rating . | . . . Part Studies Acquired . | . . . Parts Repaired . | . . . Time . | . . . Parts Recycled . | . . . Recycled Matter . | . . . Retrieved Matter . | . . . Retrieved Components . | . . . Parts Scanalyzed . | . . . Part Schematics Acquired . | . . . Parts Damaged . | . . . Bothacking | -11 -10 -10 ------------ Run | Yrd Mat Min Used RIF Installer . | . . . Robots Hacked . | . . . Non-combat . | . . . Combat . | . . . Robot Hacks Applied . | . . . Relay Couplers Released . | . . . Fabnet Peak Effective % . | . . . Robots Rewired . | . . . Allies Hacked . | . . . Hacks Repelled . | . . . Allies | -11 -10 -10 -------- Run | Yrd Mat Min Total Allies . | . . . Largest Group . | . . . Highest-Rated Group . | . . . Highest-Rated Ally . | . . . Total Orders . | . . . Ally Attacks . | . . . Total Damage . | . . . Kills . | . . . Allies Corrupted . | . . . Allies Melted . | . . . Intel | -11 -10 -10 ------- Run | Yrd Mat Min Active Infowar (turns) . | . . . Robot Analysis Total . | . . . Derelict Logs Recovered . | . . . Drone Launches . | . . . Drone Recoveries . | . . . Exploration | -11 -10 -10 ------------- Run | Yrd Mat Min Turns Passed 482 | 67 304 111 Spaces Moved 254 | 45 155 54 Core 8 | 8 . . Treads . | . . . Legs 246 | 37 155 54 Wheels . | . . . Hover . | . . . Flight . | . . . Fastest Speed 50 | 50 120 120 Average Speed 117 | 107 120 120 Slowest Speed 120 | 120 120 120 Overloaded Moves . | . . . Propulsion Burnouts . | . . . Robots Hopped . | . . . Potential Cave-ins . | . . . Cave-ins Triggered . | . . . Exploration Rate (%) 15 | 3 30 12 Regions Visited 2 Branch Regions 1 Pre-discovered Areas . | . . . Known Exits Taken . | . . . Unknown Exits Taken 2 | 1 1 . Scrap Searched . | . . . Spaces Dug . | . . . Terrain Destroyed 5 | . . 5 Melee . | . . . Projectile . | . . . AOE 5 | . . 5 Terrain Rammed . | . . . Walls Destroyed . | . . . Machines Disabled . | . . . Actions | -11 -10 -10 --------- Run | Yrd Mat Min Total 372 | 63 224 85 Wait 34 | . 23 11 Move 252 | 44 154 54 Hop . | . . . Pick Up 23 | 12 8 3 Fast Attach . | . . . Attach 9 | 6 1 2 Detach . | . . . Swap 5 | 1 3 1 Drop 7 | . 4 3 Fire 40 | . 30 10 Melee 2 | . 1 1 Ram . | . . . Kick . | . . . Crush . | . . . Escape Stasis . | . . . Rewire . | . . . Trap . | . . . Miscellaneous . | . . . Route ------- -11/Scrapyard -10/Materials -10/Mines History --------- Turn | Location | Event 26 | -11/Scrapyard | Discovered new exit (range 16) 68 | -11/Scrapyard | Entered Materials 329 | -10/Materials | Build established: Mutant 359 | -10/Materials | Discovered new exit (range 6) 372 | -10/Materials | Entered Mines 379 | -10/Mines | Received a Rocket Launcher from a helpful Derelict 438 | -10/Mines | Found a damaged Exp. Sensor Array with a note attached 441 | -10/Mines | Found Prototype Device 450 | -10/Mines | Assembled infested the area 455 | -10/Mines | Assisted by a Guerilla fighting off Assembled 479 | -10/Mines | Core integrity fell below 50% 482 | -10/Mines | Core integrity fell below 20% 483 | -10/Mines | Destroyed by D-53 Grenadier with Mini Grenade Launcher Last Messages --------------- need to get out of here! I've been tracking a group of Assembled to figure out where they're coming from, and they're closing on this area, come on!" 00457_ 2W-E1O(h): "I'll hold them off! Go on ahead or try to find another way!" 00462_ as-23457 suffers critical hit (Destroy). 00462_ as-23457 destroyed. 00464_ as-55473 suffers critical hit (Destroy). 00478_ C-45 Heavy ARC bursts open, deploying its payload. 00478_ D-53 Grenadier unfolds itself. 00478_ Aluminum Leg destroyed. 00478_ Lgt. Assault Rifle destroyed. 00479_ T-07 Excavator destroyed. 00479_ R-06 Scavenger destroyed. 00479_ T-07 Excavator destroyed. 00479_ Rocket Launcher destroyed. 00482_ D-53 Grenadier suffers critical hit (Smash). Map ----- +----------------------------------------------------+ | | | | | | | | | | | | | | | | | | | | | | | | | | | | | | | | | | | | | | | ?????????????????????????????????????????????????? | | ??????????????????????##?####????????????????????? | | ?????????????????????## # ##???????????????????? | | ????????????????????## ####??#######???????? | | ????????????????????# = #?## ##??????? | | ??????????????????### #?# * #####??? | | ??????????????????# @ d #?## #??? | | ????????????###???#r## d ###??## #### #??? | | ????#??????## #??# # *#?????# ####???????? | | ????# ## ### ## !%=####### #??????????? | | ?? ### %! #??????????? | | ???#% % #?######= #########??????????? | | ????# ######??????# #??????????????????? | | ????#%## ???????????? % ??????????????????? | | ???????#### ?????????????# """ ?????????????????? | | ??????????#??????????????# """ "????????????????? | | ?????????????????????????# """ "????????????????? | | ?????????????????????????# ? ???????????????? | | ?????????????????????????#######?????????????????? | | ?????????????????????????????????????????????????? | | ?????????????????????????????????????????????????? | | ?????????????????????????????????????????????????? | | ?????????????????????????????????????????????????? | | ?????????????????????????????????????????????????? | | ?????????????????????????????????????????????????? | | ?????????????????????????????????????????????????? | | ?????????????????????????????????????????????????? | | ?????????????????????????????????????????????????? | | ?????????????????????????????????????????????????? | | ?????????????????????????????????????????????????? | | ?????????????????????????????????????????????????? | +----------------------------------------------------+ Best States ------------- Heat Dissipation 35 Energy Generation 10 Energy Capacity 250 Matter Stores 274 Matter Capacity 300 Sight Range 16 Terrain Scan Density 10 Evasion (%) 55 Item Schematics ----------------- None Robot Schematics ------------------ None Fabricated ------------ Nothing Repaired ---------- Nothing Studied --------- None Alien Tech Used ----------------- None Achievements -------------- None Challenges ------------ None Game ------ Seed ScrapoidServoRecalibrator Manual? 0 Play Time 00:08:07 Cumulative 40.0 hours Start 2026.07.16 @ 19:58:14 End 2026.07.16 @ 20:15:27 Sessions 1 Manual Loads 0 Difficulty Rogue Special Mode None Game No. 69 Rogue 69 Adventurer 0 Explorer 0 Win Type - Total 0 Types 0/0/0/0/0/0/0/0/0/0 Lore% 18 Gallery% 27 Achievement% 17 Wizard Run 0 Options --------- Layout 1 ASCII 0 Keyboard 0 Movement Mouse Keybinds 0 Fullscreen 0 Font 20/SmallcapsGlow Map View 50x35 Zoom Use 0% Tactical HUD 1 Map Filters NONE Filters NONE Steam 1 RUN: e21c72a8-d3d6-48f6-89bd-bd357384c0ed